bitfinex/quotes_SOLUSD_20250415
["timestamp","ask_amount","ask_price","bid_price","bid_amount"]
[1744680088883,7.7709,128.69,128.65,10.21171972]
[1744680089110,7.7709,128.69,128.66,10.21171972]
[1744680089491,19.13226157,128.7,128.67,10.21171972]
[1744680089683,19.13226157,128.7,128.68,10.21171972]
[1744680089887,248.8896,128.73,128.69,10.21171972]
[1744680090088,0.14216157,128.73,128.71,10.21171972]
[1744680090305,17.6357,128.77,128.72,10.21171972]
[1744680090506,7.90856157,128.76,128.73,10.21171972]
[1744680090830,17.6357,128.77,128.71,7.7693]
[1744680090831,19.0159,128.77,128.75,10.21171972]
[1744680091009,19.0159,128.77,128.74,10.21171972]
[1744680091195,19.0159,128.77,128.71,7.7693]
[1744680091196,19.0159,128.77,128.75,16.30119151]
[1744680091593,11.25,128.77,128.75,16.30119151]
[1744680091806,11.25,128.77,128.76,16.30119151]
[1744680091984,11.25,128.77,128.75,16.30119151]
[1744680092187,11.25,128.77,128.76,16.30119151]
[1744680092387,0.03,128.77,128.76,16.30119151]
[1744680094086,0.03,128.77,128.75,16.30119151]
[1744680094517,0.03,128.77,128.76,16.30119151]
[1744680096992,0.03,128.77,128.76,42.02898302]
[1744680097509,0.03,128.77,128.76,25.72779151]
[1744680097711,0.03,128.77,128.76,17.96149151]
[1744680098012,0.03,128.77,128.76,16.30119151]
[1744680100312,0.03,128.77,128.74,42.30119151]
[1744680100598,0.03,128.77,128.74,26.0]
[1744680101914,7.7957,128.77,128.74,26.0]
[1744680102617,7.7957,128.77,128.74,42.30119151]
[1744680102816,24.09689151,128.77,128.72,16.30119151]
[1744680103720,16.86983779,128.76,128.71,16.30119151]
[1744680104018,7.7675,128.74,128.71,16.30119151]
[1744680105110,7.7669,128.75,128.71,16.30119151]
[1744680106394,7.796,128.77,128.74,16.30119151]
[1744680106597,0.03,128.77,128.76,16.30119151]
[1744680107110,0.03,128.77,128.76,40.36868302]
[1744680107706,0.03,128.8,128.79,26.0]
[1744680107905,0.03,128.8,128.79,42.30119151]
[1744680109206,0.03,128.8,128.79,50.06569151]
[1744680110837,0.03,128.8,128.75,8.0572]
[1744680111021,0.03,128.8,128.77,16.30119151]
[1744680111194,0.03,128.8,128.75,8.0572]
[1744680111195,0.03,128.8,128.76,16.30119151]
[1744680112301,0.03,128.8,128.77,42.30119151]
[1744680112814,7.7939,128.8,128.77,42.30119151]
[1744680113005,7.7939,128.8,128.77,26.0]
[1744680113512,0.14216157,128.79,128.75,42.30119151]
[1744680114108,0.14216157,128.79,128.75,16.30119151]
[1744680114511,0.14216157,128.79,128.75,42.30119151]
[1744680114710,18.9939,128.8,128.78,16.30119151]
[1744680116104,18.9939,128.8,128.77,16.30119151]
[1744680116309,18.9939,128.8,128.76,16.30119151]
[1744680117018,18.9939,128.8,128.75,26.0]
[1744680117239,18.9939,128.8,128.76,16.30119151]
[1744680117616,18.9939,128.8,128.77,16.30119151]
[1744680117920,18.9939,128.8,128.78,16.30119151]
[1744680118117,18.9939,128.8,128.75,33.7669]
[1744680118118,0.03,128.8,128.79,16.30119151]
[1744680118316,7.7939,128.8,128.79,16.30119151]
[1744680118515,7.7939,128.8,128.76,16.30119151]
[1744680118516,7.7939,128.8,128.78,16.30119151]
[1744680118715,7.7939,128.8,128.77,16.30119151]
[1744680118942,0.17216157,128.8,128.77,16.30119151]
[1744680119521,0.17216157,128.8,128.78,16.30119151]
[1744680119744,0.03,128.8,128.78,16.30119151]
[1744680119947,0.03,128.8,128.79,16.30119151]
[1744680121127,7.3521,128.83,128.79,16.30119151]
[1744680121325,7.3521,128.83,128.81,16.30119151]
[1744680122253,7.3521,128.83,128.8,16.30119151]
[1744680123363,0.56864628,128.82,128.78,16.30119151]
[1744680123532,0.14216157,128.8,128.76,16.30119151]
[1744680124139,16.58551465,128.8,128.75,16.30119151]
[1744680124449,27.78551465,128.79,128.74,16.30119151]
[1744680124676,16.30119151,128.78,128.74,16.30119151]
[1744680124850,16.30119151,128.76,128.69,9.3794]
[1744680125039,16.30119151,128.76,128.71,16.30119151]
[1744680125443,16.44335308,128.74,128.69,16.30119151]
[1744680125669,27.64335308,128.74,128.69,16.30119151]
[1744680126049,11.34216157,128.74,128.7,16.30119151]
[1744680126266,11.2,128.74,128.71,16.30119151]
[1744680127263,27.50119151,128.74,128.69,16.30119151]
[1744680127867,7.7681,128.73,128.69,16.30119151]
[1744680128166,7.7681,128.73,128.7,16.30119151]
[1744680130075,0.14216157,128.72,128.69,16.30119151]
[1744680130271,0.14216157,128.72,128.68,16.30119151]
[1744680130844,0.14216157,128.72,128.66,16.36419151]
[1744680130845,0.14216157,128.7,128.66,16.36419151]
[1744680131057,16.44335308,128.69,128.66,0.063]
[1744680131282,0.14216157,128.67,128.66,0.063]
[1744680131565,35.51948665,128.67,128.66,0.063]
[1744680132151,43.29128665,128.67,128.66,0.063]
[1744680133672,0.14216157,128.67,128.66,0.063]
[1744680133973,7.91396157,128.67,128.66,0.063]
[1744680134282,24.21515308,128.67,128.66,0.063]
[1744680135568,43.29128665,128.67,128.66,0.063]
[1744680135771,19.21829514,128.66,128.65,0.063]
[1744680135955,35.51948665,128.66,128.65,0.063]
[1744680136763,35.51948665,128.66,128.64,0.063]
[1744680136764,0.14216157,128.65,128.64,0.063]
[1744680137084,77.97457816,128.65,128.64,0.0001]
[1744680137664,85.74757816,128.65,128.64,0.0001]
[1744680138251,69.44638665,128.65,128.64,0.0001]
[1744680139280,49.30422508,128.65,128.64,0.0001]
[1744680139668,49.44638665,128.65,128.64,0.0001]
[1744680141460,85.74757816,128.65,128.64,0.0001]
[1744680142392,69.44638665,128.65,128.64,0.0001]
[1744680143287,85.74757816,128.65,128.64,0.0001]
[1744680144893,69.44638665,128.65,128.64,0.0001]
[1744680148670,43.15032508,128.65,128.64,0.0001]
[1744680148866,43.29248665,128.65,128.64,0.0001]
[1744680150482,63.29248665,128.65,128.64,0.0001]
[1744680150787,74.51248665,128.65,128.64,0.0001]
[1744680151585,97.82248665,128.65,128.64,0.0001]
[1744680151784,74.51248665,128.65,128.64,0.0001]
[1744680154782,37.926972,128.65,128.64,0.0001]
[1744680155088,0.14216157,128.67,128.64,16.30129151]
[1744680155288,0.14216157,128.67,128.64,10.20487668]
[1744680155289,0.14216157,128.66,128.64,10.20487668]
[1744680155794,0.14216157,128.66,128.64,0.0001]
[1744680156392,0.14216157,128.66,128.64,10.20487668]
[1744680157089,7.91466157,128.66,128.64,0.0001]
[1744680158290,19.07613357,128.65,128.64,0.0001]
[1744680160094,26.84913357,128.65,128.64,0.0001]
[1744680163710,30.78886157,128.69,128.64,0.0001]
[1744680163880,0.14216157,128.67,128.64,0.0001]
[1744680164202,0.14216157,128.67,128.65,16.32968899]
[1744680164401,7.91426157,128.67,128.64,0.0001]
[1744680164577,7.91426157,128.67,128.64,16.32978899]
[1744680164978,7.91426157,128.67,128.64,0.0001]
[1744680165181,24.24395056,128.67,128.64,0.0001]
[1744680165786,0.14216157,128.67,128.64,16.32978899]
[1744680166072,11.22,128.69,128.67,1.6102]
[1744680166273,11.22,128.69,128.67,17.93988899]
[1744680166486,18.9906,128.69,128.67,17.93988899]
[1744680167510,11.22,128.69,128.67,17.93988899]
[1744680167679,11.22,128.69,128.65,7.7728]
[1744680167884,0.14216157,128.68,128.64,43.84778899]
[1744680168083,0.14216157,128.68,128.65,16.32968899]
[1744680168807,7.91346157,128.68,128.65,16.32968899]
[1744680169305,0.14216157,128.68,128.65,16.32968899]
[1744680171402,7.91346157,128.68,128.64,35.2916]
[1744680171607,7.91346157,128.68,128.65,16.32968899]
[1744680171983,0.14216157,128.66,128.64,1.5181]
[1744680172192,0.14216157,128.66,128.64,0.0001]
[1744680172697,7.91486157,128.66,128.64,0.0001]
[1744680174107,0.14216157,128.68,128.65,16.32968899]
[1744680174415,11.22,128.69,128.66,16.32968899]
[1744680174709,18.9906,128.69,128.65,16.32968899]
[1744680175611,18.9906,128.69,128.66,16.32968899]
[1744680178011,11.22,128.69,128.66,16.32968899]
[1744680178207,11.22,128.69,128.67,16.32968899]
[1744680178587,11.22,128.69,128.66,16.32968899]
[1744680179202,18.9906,128.69,128.66,10.20138576]
[1744680180315,0.14216157,128.66,128.64,0.0001]
[1744680180606,0.14216157,128.68,128.64,10.20148576]
[1744680180813,0.14216157,128.68,128.65,10.20138576]
[1744680181113,0.14216157,128.68,128.64,10.20148576]
[1744680181412,7.7718,128.67,128.64,10.20148576]
[1744680181619,10.77003204,128.66,128.64,0.0001]
[1744680181914,29.4196809,128.65,128.64,0.0001]
[1744680182104,62.93106666,128.65,128.64,0.0001]
[1744680182282,55.4196809,128.62,128.61,0.063]
[1744680182484,0.28432314,128.61,128.58,0.063]
[1744680182686,29.4196809,128.59,128.58,0.063]
[1744680182911,0.14216157,128.59,128.58,0.063]
[1744680183087,0.14216157,128.61,128.58,0.063]
[1744680183418,11.22,128.62,128.59,10.20138576]
[1744680183597,18.9949,128.62,128.58,10.26438576]
[1744680183798,29.19628576,128.62,128.58,10.26438576]
[1744680184608,18.9949,128.62,128.58,10.26438576]
[1744680184800,29.19628576,128.62,128.58,0.063]
[1744680185002,29.4196809,128.61,128.58,0.063]
[1744680185313,0.14216157,128.61,128.58,10.26438576]
[1744680186794,11.22,128.62,128.59,10.20138576]
[1744680186999,18.9949,128.62,128.59,10.20138576]
[1744680187497,11.22,128.62,128.6,10.20138576]
[1744680187698,11.22,128.62,128.61,10.20138576]
[1744680188013,7.7737,128.64,128.6,10.20138576]
[1744680188907,7.7737,128.64,128.59,7.7765]
[1744680189091,7.7737,128.64,128.6,10.20138576]
[1744680191204,7.91516157,128.65,128.62,10.20138576]
[1744680192093,18.9926,128.66,128.63,10.20138576]
[1744680192295,11.22,128.66,128.65,10.20138576]
[1744680192513,0.14216157,128.69,128.65,10.20138576]
[1744680192817,0.14216157,128.69,128.66,10.20138576]
[1744680193015,7.91286157,128.69,128.65,10.20138576]
[1744680195404,7.91286157,128.69,128.63,36.20138576]
[1744680195405,0.14216157,128.67,128.63,36.20138576]
[1744680195806,0.14216157,128.67,128.64,10.20138576]
[1744680197605,7.91406157,128.67,128.65,10.20138576]
[1744680198319,0.14216157,128.69,128.66,10.20138576]
[1744680198504,7.91286157,128.69,128.67,10.20138576]
[1744680200216,7.7991,128.72,128.68,10.20138576]
[1744680200420,7.7991,128.72,128.71,10.20138576]
[1744680200421,0.03,128.72,128.71,10.20138576]
[1744680200824,0.03,128.72,128.7,10.20138576]
[1744680201507,0.03,128.72,128.71,10.20138576]
[1744680203530,0.03,128.74,128.71,25.92738576]
[1744680203734,0.03,128.74,128.73,36.20138576]
[1744680204724,0.03,128.74,128.73,119.20138576]
[1744680204916,0.03,128.75,128.74,22.03197152]
[1744680205226,0.03,128.75,128.74,105.03197152]
[1744680205413,0.03,128.75,128.74,112.79947152]
[1744680205940,0.03,128.75,128.74,102.59808576]
[1744680207325,0.03,128.78,128.77,26.0]
[1744680207510,0.03,128.78,128.77,42.57148576]
[1744680208343,0.03,128.81,128.78,1.54]
[1744680208628,0.03,128.81,128.8,36.20138576]
[1744680208810,0.03,128.81,128.8,46.40277152]
[1744680209210,0.03,128.81,128.8,58.54987892]
[1744680209416,0.03,128.81,128.8,66.31377892]
[1744680209622,0.03,128.81,128.8,50.03883946]
[1744680210625,0.03,128.81,128.8,42.27493946]
[1744680211707,0.03,128.81,128.8,50.03883946]
[1744680212841,0.03,128.81,128.8,68.83064989]
[1744680213017,2.7826845,128.84,128.8,68.83064989]
[1744680213018,0.14796558,128.84,128.83,18.79181043]
[1744680213212,0.03,128.86,128.85,26.0]
[1744680213416,0.03,128.87,128.86,42.27493946]
[1744680214530,0.03,128.87,128.86,58.54987892]
[1744680214715,0.03,128.87,128.86,42.27493946]
[1744680215040,0.03,128.87,128.86,50.03523946]
[1744680215240,0.03,128.87,128.86,170.03301249]
[1744680216231,0.03,128.87,128.86,43.92163946]
[1744680219055,0.03,128.87,128.86,27.6467]
[1744680219243,0.03,128.87,128.86,16.27493946]
[1744680220818,0.03,128.87,128.85,16.27493946]
[1744680221131,16.27493946,128.86,128.82,16.27493946]
[1744680221434,0.14216157,128.86,128.82,16.27493946]
[1744680222434,7.7609,128.85,128.82,16.27493946]
[1744680222637,7.7609,128.85,128.82,26.0]
[1744680222820,7.7609,128.85,128.82,42.27493946]
[1744680223014,0.03,128.87,128.84,16.27493946]
[1744680223331,0.03,128.87,128.86,16.27493946]
[1744680224540,0.03,128.88,128.86,150.53121249]
[1744680224737,0.03,128.88,128.87,32.54987892]
[1744680225323,0.03,128.88,128.87,134.62601249]
[1744680225953,0.03,128.88,128.87,115.54987892]
[1744680226436,0.03,128.88,128.87,123.30957892]
[1744680227042,0.03,128.88,128.87,99.27493946]
[1744680227331,0.03,128.88,128.86,17.80333946]
[1744680227727,0.03,128.88,128.87,42.27493946]
[1744680228540,0.03,128.88,128.84,83.0]
[1744680228743,0.03,128.88,128.86,16.27493946]
[1744680229643,0.03,128.88,128.87,16.27493946]
[1744680230024,0.03,128.88,128.87,42.27493946]
[1744680231750,0.03,128.89,128.87,142.38571249]
[1744680231958,0.03,128.89,128.88,34.07067892]
[1744680233126,0.03,128.92,128.91,33.7573]
[1744680233322,0.03,128.92,128.91,50.03223946]
[1744680233922,6.1853,129.12,129.0,18.79181043]
[1744680234120,7.7461,129.1,129.07,16.27493946]
[1744680234322,6.1853,129.12,129.05,26.0]
[1744680234323,13.9304,129.12,129.05,26.0]
[1744680234528,16.27493946,129.11,129.06,16.27493946]
[1744680234823,16.27493946,129.11,129.01,17.2124]
[1744680235036,16.41710103,129.1,129.05,16.27493946]
[1744680235343,0.14216157,129.08,129.04,42.27493946]
[1744680235529,0.14216157,129.08,129.05,16.27493946]
[1744680235931,19.21829514,129.08,129.04,16.27493946]
[1744680236332,19.21829514,129.08,129.05,16.27493946]
[1744680236935,26.96549514,129.08,129.04,16.27493946]
[1744680237359,19.21829514,129.08,129.04,16.27493946]
[1744680237547,26.96539514,129.08,129.04,16.27493946]
[1744680237942,0.14216157,129.08,129.05,16.27493946]
[1744680238258,0.14216157,129.08,129.04,16.27493946]
[1744680238631,0.14216157,129.08,129.05,16.27493946]
[1744680238847,19.21829514,129.08,129.04,16.27493946]
[1744680239149,0.14216157,129.06,129.04,16.27493946]
[1744680239347,26.96559514,129.08,129.04,16.27493946]
[1744680240156,0.14216157,129.08,129.04,16.27493946]
[1744680240356,26.96549514,129.08,129.01,7.7513]
[1744680240563,26.96549514,129.08,129.04,16.27493946]
[1744680240756,7.88936157,129.08,129.05,16.27493946]
[1744680241059,7.88936157,129.08,129.06,16.27493946]
[1744680241364,7.88936157,129.08,129.05,16.27493946]
[1744680241655,2.7826845,129.09,129.07,16.27493946]
[1744680242162,0.14216157,129.08,129.05,16.27493946]
[1744680243052,7.88976157,129.08,129.05,16.27493946]
[1744680243649,26.53941043,129.08,129.04,16.27493946]
[1744680243850,0.14216157,129.04,128.99,16.27493946]
[1744680244148,11.48,129.06,129.02,16.27493946]
[1744680244357,0.14216157,129.05,129.02,16.27493946]
[1744680244550,7.88976157,129.08,129.04,16.27493946]
[1744680244736,7.88976157,129.08,129.05,16.27493946]
[1744680245051,21.85881807,129.09,129.0,16.27493946]
[1744680245052,10.5293845,129.09,129.07,16.27493946]
[1744680245352,35.20891146,129.08,129.03,42.27493946]
[1744680245532,0.28432314,129.07,129.03,42.27493946]
[1744680246452,7.7483,129.06,129.03,42.27493946]
[1744680247143,7.7479,129.07,129.04,16.27493946]
[1744680247650,7.7471,129.08,129.06,16.27493946]
[1744680249451,2.7826845,129.09,129.06,16.27493946]
[1744680249658,2.7826845,129.09,129.08,16.27493946]
[1744680251357,10.5292845,129.09,129.05,42.27493946]
[1744680251943,2.7826845,129.09,129.07,16.27493946]
[1744680252143,2.7826845,129.09,129.08,16.27493946]
[1744680252846,2.7826845,129.09,129.06,26.0]
[1744680253052,2.7826845,129.09,129.07,16.27493946]
[1744680253258,2.7826845,129.09,129.08,16.27493946]
[1744680254767,2.7826845,129.09,129.07,16.27493946]
[1744680255150,2.7826845,129.09,129.08,16.27493946]
[1744680255457,10.5291845,129.09,129.06,42.27493946]
[1744680255768,2.7826845,129.09,129.08,16.27493946]
[1744680256145,2.7826845,129.09,129.07,16.27493946]
[1744680256342,10.5291845,129.09,129.07,16.27493946]
[1744680256545,10.5291845,129.09,129.06,26.0]
[1744680256546,10.5291845,129.09,129.06,42.27493946]
[1744680256762,2.7826845,129.09,129.07,16.27493946]
[1744680256953,2.7826845,129.09,129.08,16.27493946]
[1744680262357,2.7826845,129.09,129.06,26.0]
[1744680262577,10.5291845,129.09,129.06,26.0]
[1744680262886,10.5291845,129.09,129.06,42.27493946]
[1744680265580,35.4932346,129.08,129.0,1.6464]
[1744680265782,0.14216157,129.08,129.04,16.27493946]
[1744680266288,35.06674989,129.08,129.03,42.27493946]
[1744680266471,7.7477,129.07,129.04,16.27493946]
[1744680266673,7.7477,129.07,129.03,42.27493946]
[1744680269682,14.2626845,129.09,129.06,16.27493946]
[1744680269862,14.2626845,129.09,129.07,16.27493946]
[1744680270068,2.7826845,129.09,129.07,16.27493946]
[1744680270267,2.7826845,129.09,129.06,16.27493946]
[1744680270492,0.14216157,129.08,129.04,16.27493946]
[1744680271187,0.14216157,129.08,129.03,26.0]
[1744680271188,0.14216157,129.08,129.05,16.27493946]
[1744680271376,10.5293845,129.09,129.06,16.27493946]
[1744680272385,26.80432396,129.09,129.04,16.27493946]
[1744680272579,46.17062396,129.09,129.04,42.27493946]
[1744680272972,29.8956845,129.09,129.05,16.27493946]
[1744680274097,0.14216157,129.08,129.04,42.27493946]
[1744680274676,35.4932346,129.08,129.03,16.27493946]
[1744680274891,0.14216157,129.06,129.02,16.27493946]
[1744680275208,0.14216157,129.06,129.02,42.27493946]
[1744680275810,0.14216157,129.06,129.02,16.27493946]
[1744680276011,7.7489,129.05,129.02,16.27493946]
[1744680276817,7.7477,129.07,129.04,16.27493946]
[1744680277114,7.7477,129.07,129.05,16.27493946]
[1744680277986,7.7474,129.08,129.05,16.27493946]
[1744680278192,7.7474,129.08,129.06,16.27493946]
[1744680278404,7.7474,129.08,129.05,16.27493946]
[1744680278705,7.7474,129.08,129.04,16.27493946]
[1744680279101,7.7474,129.08,129.01,7.7512]
[1744680279300,7.7474,129.08,129.04,16.27493946]
[1744680279912,7.7474,129.08,129.05,16.27493946]
[1744680280087,10.5292845,129.09,129.07,16.27493946]
[1744680280290,10.5292845,129.09,129.06,16.27493946]
[1744680280489,26.80422396,129.09,129.04,16.27493946]
[1744680281415,40.03636165,129.09,129.04,10.14077715]
[1744680281590,29.8955845,129.09,129.05,10.14077715]
[1744680281791,2.7826845,129.09,129.07,10.14077715]
[1744680282112,2.7826845,129.09,129.08,10.14077715]
[1744680283494,2.7826845,129.09,129.08,17.88787715]
[1744680283884,0.03,129.14,129.08,17.88787715]
[1744680284090,0.03,129.14,129.13,10.14077715]
[1744680285108,0.03,129.14,129.08,7.7471]
[1744680285406,0.03,129.14,129.13,16.20566314]
[1744680285907,0.03,129.14,129.12,16.20566314]
[1744680286808,0.03,129.14,129.09,7.7461]
[1744680286994,0.03,129.14,129.12,16.20566314]
[1744680287312,0.03,129.14,129.11,16.20566314]
[1744680287498,0.03,129.14,129.12,16.20566314]
[1744680288106,0.03,129.14,129.13,16.20566314]
[1744680288502,0.03,129.14,129.07,26.78401082]
[1744680288695,0.03,129.14,129.12,16.20566314]
[1744680290805,0.03,129.14,129.11,16.20566314]
[1744680291313,0.03,129.14,129.13,16.20566314]
[1744680293018,0.03,129.14,129.12,16.20566314]
[1744680293721,0.03,129.14,129.11,16.20566314]
[1744680294222,0.03,129.14,129.12,16.20566314]
[1744680294618,0.03,129.14,129.11,16.20566314]
[1744680294814,0.03,129.14,129.08,7.747]
[1744680295014,0.03,129.14,129.1,42.20566314]
[1744680295322,0.03,129.14,129.11,16.20566314]
[1744680296117,0.03,129.14,129.1,42.20566314]
[1744680297221,16.20566314,129.13,129.08,16.20566314]
[1744680297522,16.23566314,129.14,129.09,42.20566314]
[1744680297720,16.23566314,129.14,129.09,26.0]
[1744680298025,16.23566314,129.14,129.09,42.20566314]
[1744680298206,7.7441,129.13,129.1,16.20566314]
[1744680298923,7.7441,129.13,129.09,42.20566314]
[1744680299826,7.7441,129.13,129.1,16.20566314]
[1744680300397,0.03,129.14,129.09,42.20566314]
[1744680300398,27.1323,129.14,129.09,42.20566314]
[1744680300819,0.03,129.14,129.13,16.20566314]
[1744680301403,0.03,129.14,129.12,16.20566314]
[1744680301603,0.03,129.14,129.11,16.20566314]
[1744680302332,0.03,129.14,129.12,16.20566314]
[1744680304042,0.03,129.14,129.13,16.20566314]
[1744680306711,0.03,129.14,129.12,16.20566314]
[1744680307140,0.03,129.14,129.13,10.12681607]
[1744680307503,0.03,129.14,129.13,17.87091607]
[1744680308227,0.03,129.14,129.13,19.44791607]
[1744680308432,0.03,129.14,129.13,11.70381607]
[1744680309240,0.03,129.14,129.13,19.44791607]
[1744680311712,0.03,129.14,129.13,127.33826493]
[1744680312722,0.03,129.14,129.13,139.04474964]
[1744680312917,0.03,129.15,129.14,29.20294964]
[1744680313119,0.03,129.2,129.14,29.20294964]
[1744680313324,0.03,129.2,129.19,10.12681607]
[1744680314248,0.03,129.2,129.15,7.7427]
[1744680314425,0.03,129.2,129.17,10.12681607]
[1744680314620,0.03,129.2,129.18,10.12681607]
[1744680314816,0.03,129.2,129.15,7.7427]
[1744680315020,0.03,129.2,129.14,90.7432]
[1744680315231,10.15681607,129.2,129.14,83.0]
[1744680315537,10.15681607,129.2,129.15,10.12681607]
[1744680315913,10.12681607,129.19,129.14,83.0]
[1744680316115,7.7411,129.18,129.15,10.12681607]
[1744680316540,7.7411,129.18,129.16,10.12681607]
[1744680316912,17.86791607,129.18,129.1,83.0]
[1744680317131,10.12681607,129.16,129.11,10.12681607]
[1744680317523,10.12681607,129.17,129.12,10.12681607]
[1744680317931,10.12681607,129.16,129.11,10.12681607]
[1744680318132,7.7429,129.15,129.11,10.12681607]
[1744680318939,7.7424,129.16,129.12,10.12681607]
[1744680319234,7.7418,129.17,129.14,10.12681607]
[1744680319458,0.03,129.2,129.16,10.12681607]
[1744680319619,0.03,129.2,129.19,10.12681607]
[1744680321131,0.03,129.2,129.19,16.18735398]
[1744680322052,0.03,129.2,129.18,16.18735398]
[1744680324139,0.03,129.2,129.16,84.6512]
[1744680324441,0.03,129.2,129.18,16.18735398]
[1744680325041,0.03,129.2,129.19,16.18735398]
[1744680326048,0.03,129.2,129.17,7.7412]
[1744680326234,0.03,129.2,129.17,16.18735398]
[1744680326620,0.03,129.2,129.18,16.18735398]
[1744680326839,0.03,129.2,129.19,16.18735398]
[1744680327140,0.03,129.2,129.18,16.18735398]
[1744680329843,0.03,129.2,129.19,16.18735398]
[1744680332249,0.03,129.2,129.19,113.34505398]
[1744680332426,0.03,129.27,129.26,26.0]
[1744680332739,0.03,129.27,129.26,42.18735398]
[1744680333354,0.03,129.27,129.26,49.92365398]
[1744680338349,0.03,129.27,129.26,42.18735398]
[1744680338553,0.03,129.27,129.26,49.92365398]
[1744680340860,0.03,129.27,129.26,26.0]
[1744680341237,0.03,129.27,129.26,36.10538453]
[1744680343651,0.03,129.27,129.26,43.84168453]
[1744680344451,0.03,129.27,129.26,126.84168453]
[1744680344659,0.03,129.27,129.26,145.9178181]
[1744680345242,10.5137845,129.35,129.27,1.5652]
[1744680345444,10.5137845,129.35,129.31,10.10538453]
[1744680346153,0.03,129.33,129.32,10.10538453]
[1744680348465,0.03,129.33,129.3,36.10538453]
[1744680349072,0.03,129.33,129.29,10.10538453]
[1744680349456,0.03,129.33,129.3,10.10538453]
[1744680349965,0.03,129.33,129.29,10.10538453]
[1744680350368,0.03,129.33,129.32,36.10538453]
[1744680350550,0.03,129.33,129.3,10.10538453]
[1744680351877,0.03,129.33,129.32,10.10538453]
[1744680352053,0.03,129.33,129.32,36.10538453]
[1744680352468,0.03,129.33,129.32,43.83808453]
[1744680355055,0.03,129.33,129.32,62.9142181]
[1744680355559,0.03,129.33,129.32,121.70637967]
[1744680355759,0.03,129.33,129.32,17.83808453]
[1744680355959,0.03,129.33,129.32,26.0]
[1744680357378,0.03,129.33,129.32,43.83808453]
[1744680357684,0.03,129.33,129.32,145.9142181]
[1744680358046,0.03,129.33,129.32,126.83808453]
[1744680359148,0.03,129.33,129.32,109.0]
[1744680359770,0.03,129.33,129.32,119.10538453]
[1744680359960,0.03,129.33,129.32,126.83808453]
[1744680360158,0.03,129.33,129.32,109.0]
[1744680360358,0.03,129.33,129.32,126.83808453]
[1744680360563,0.03,129.33,129.32,119.10538453]
[1744680360779,0.03,129.33,129.32,109.0]
[1744680361103,0.03,129.33,129.3,83.0]
[1744680361383,7.7621,129.33,129.3,83.0]
[1744680361697,10.10538453,129.31,129.27,83.0]
[1744680361977,10.10538453,129.3,129.26,1.6033]
[1744680362478,10.10538453,129.29,129.24,83.0]
[1744680362684,10.10538453,129.28,129.24,83.0]
[1744680362865,1.2017,129.31,129.24,10.10538453]
[1744680363067,10.10538453,129.32,129.27,10.10538453]
[1744680363267,10.10538453,129.3,129.25,10.10538453]
[1744680363464,0.03,129.33,129.27,10.10538453]
[1744680363465,7.7328,129.32,129.27,10.10538453]
[1744680363660,17.83818453,129.32,129.27,36.10538453]
[1744680363973,10.10538453,129.3,129.27,26.0]
[1744680364273,10.10538453,129.3,129.25,10.10538453]
[1744680364873,19.3318,129.32,129.25,10.10538453]
[1744680365063,10.10538453,129.3,129.25,10.10538453]
[1744680365959,10.10538453,129.28,129.24,83.0]
[1744680366161,10.10538453,129.3,129.25,10.10538453]
[1744680366666,16.28998453,129.32,129.27,10.10538453]
[1744680366870,7.7333,129.31,129.27,10.10538453]
[1744680367182,17.83868453,129.31,129.25,10.10538453]
[1744680367385,10.10538453,129.3,129.25,10.10538453]
[1744680367567,10.10538453,129.29,129.24,93.10538453]
[1744680367881,10.10538453,129.29,129.24,10.10538453]
[1744680369272,7.7351,129.28,129.24,10.10538453]
[1744680369782,7.7351,129.28,129.24,17.84288453]
[1744680369988,7.7348,129.29,129.25,10.10538453]
[1744680370175,7.7342,129.3,129.26,10.10538453]
[1744680370983,7.7342,129.3,129.27,10.10538453]
[1744680371180,17.83868453,129.31,129.26,10.10538453]
[1744680373789,10.10538453,129.3,129.25,10.10538453]
[1744680374090,37.17198453,129.31,129.26,10.10538453]
[1744680374783,6.3626,129.33,129.3,10.10538453]
[1744680374966,0.03,129.33,129.32,10.10538453]
[1744680375172,6.6222,129.42,129.35,26.0]